fUSD/lending_fUSD_20240519
["ID","MTS","AMOUNT","RATE_DAILY","PERIOD"]
[327456038,1716079862031,-1106.38,0.00028219,2]
[327456039,1716079862043,-500.0,0.00028219,2]
[327456040,1716079862054,-151.0,0.00028219,7]
[327456041,1716079862064,-500.0,0.00028219,2]
[327456042,1716079862074,-500.0,0.00028219,2]
[327456043,1716079862084,-500.0,0.00028219,2]
[327456044,1716079862095,-500.0,0.00028219,2]
[327456045,1716079862104,-151.0,0.00028219,7]
[327456046,1716079862114,-500.0,0.00028219,2]
[327456047,1716079862124,-957.21,0.00028219,2]
[327456048,1716079862133,-1257.0,0.00028219,2]
[327456049,1716079862143,-500.0,0.00028219,2]
[327456050,1716079862152,-500.0,0.00028219,2]
[327456051,1716079862161,-500.0,0.00028219,2]
[327456052,1716079862170,-247.36,0.00028219,2]
[327456053,1716079862179,-500.0,0.00028219,2]
[327456054,1716079862189,-1352.16,0.00028219,2]
[327456055,1716079862198,-500.0,0.00028219,2]
[327456056,1716079862207,-684.6,0.00028219,2]
[327456057,1716079862216,-1072.66,0.00028219,2]
[327456058,1716079862226,-849.73,0.00028219,2]
[327456059,1716079862235,-500.0,0.00028219,2]
[327456060,1716079862244,-874.66,0.00028219,2]
[327456061,1716079862254,-585.08,0.00028219,2]
[327456062,1716079862263,-1990.29,0.00028219,2]
[327456063,1716079862273,-545.44,0.00028219,2]
[327456064,1716079862283,-1243.99,0.00028219,2]
[327456065,1716079862292,-500.0,0.00028219,2]
[327456066,1716079862302,-750.45,0.00028219,2]
[327456067,1716079862312,-748.72,0.00028219,2]
[327456068,1716079862321,-1292.43,0.00028219,2]
[327456069,1716079862331,-500.0,0.00028219,2]
[327456070,1716079862340,-846.9,0.00028219,2]
[327456071,1716079862350,-500.0,0.00028219,2]
[327456072,1716079862360,-1250.19,0.00028219,2]
[327456073,1716079862370,-1463.37,0.00028219,2]
[327456074,1716079862379,-500.0,0.00028219,2]
[327456075,1716079862388,-530.63,0.00028219,2]
[327456076,1716079862398,-500.0,0.00028219,2]
[327456077,1716079862407,-843.77,0.00028219,2]
[327456078,1716079862416,-1072.07,0.00028219,2]
[327456079,1716079862425,-500.0,0.00028219,2]
[327456080,1716079862435,-896.67,0.00028219,2]
[327456081,1716079862444,-500.0,0.00028219,2]
[327456082,1716079862453,-500.0,0.00028219,2]
[327456083,1716079862462,-319.688279,0.00028219,7]
[327456084,1716079862472,-500.0,0.00028219,2]
[327456085,1716079862481,-733.96,0.00028219,2]
[327456086,1716079862490,-1493.69,0.00028219,2]
[327456087,1716079862500,-319.688279,0.00028219,7]
[327456088,1716079862509,-996.4,0.00028219,2]
[327456089,1716079862518,-500.0,0.00028219,2]
[327456090,1716079862527,-218.326088,0.00028219,7]
[327456091,1716079862537,-500.0,0.00028219,2]
[327456092,1716079862548,-500.0,0.00028219,2]
[327456093,1716079862557,-500.0,0.00028219,2]
[327456094,1716079862567,-1067.83,0.00028219,2]
[327456095,1716079862576,-500.0,0.00028219,2]
[327456096,1716079862585,-717.91,0.00028219,2]
[327456097,1716079862595,-464.916368,0.00028219,7]
[327456098,1716079862604,-671.98,0.00028219,2]
[327456099,1716079862613,-464.916368,0.00028219,7]
[327456100,1716079862622,-414.26,0.00028219,2]
[327456101,1716079862632,-500.0,0.00028219,2]
[327456102,1716079862642,-637.51,0.00028219,2]
[327456103,1716079862651,-151.0,0.00028219,7]
[327456104,1716079862661,-500.0,0.00028219,2]
[327456105,1716079862670,-709.05,0.00028219,2]
[327456106,1716079862679,-500.0,0.00028219,2]
[327456107,1716079862689,-1264.55,0.00028219,2]
[327456108,1716079862698,-151.0,0.00028219,7]
[327456109,1716079862708,-500.0,0.00028219,2]
[327456110,1716079862717,-753.77,0.00028219,2]
[327456111,1716079862726,-500.0,0.00028219,2]
[327456112,1716079862735,-1101.63,0.00028219,2]
[327456113,1716079862744,-500.0,0.00028219,2]
[327456114,1716079862754,-1105.23,0.00028219,2]
[327456115,1716079862763,-516.07,0.00028219,2]
[327456116,1716079862773,-500.0,0.00028219,2]
[327456117,1716079862782,-500.0,0.00028219,2]
[327456118,1716079862792,-500.0,0.00028219,2]
[327456119,1716079862801,-1016.72,0.00028219,2]
[327456120,1716079862811,-500.0,0.00028219,2]
[327456121,1716079862820,-1552.71,0.00028219,2]
[327456122,1716079862829,-1614.27,0.00028219,2]
[327456123,1716079862839,-822.34,0.00028219,2]
[327456124,1716079862850,-500.0,0.00028219,2]
[327456125,1716079862860,-745.19,0.00028219,2]
[327456126,1716079862870,-500.0,0.00028219,2]
[327456127,1716079862879,-861.8,0.00028219,2]
[327456128,1716079862888,-500.0,0.00028219,2]
[327456129,1716079862897,-867.38,0.00028219,2]
[327456130,1716079862906,-500.0,0.00028219,2]
[327456131,1716079862916,-500.0,0.00028219,2]
[327456132,1716079862926,-790.2,0.00028219,2]
[327456133,1716079862935,-908.09,0.00028219,2]
[327456134,1716079862945,-500.0,0.00028219,2]
[327456135,1716079862955,-2847.34,0.00028219,2]
[327456136,1716079862964,-500.0,0.00028219,2]
[327456137,1716079862973,-500.0,0.00028219,2]
[327456138,1716079862983,-500.0,0.00028219,2]
[327456139,1716079862992,-500.0,0.00028219,2]
[327456140,1716079863003,-500.0,0.00028219,2]
[327456141,1716079863013,-500.0,0.00028219,2]
[327456142,1716079863022,-500.0,0.00028219,2]
[327456143,1716079863032,-500.0,0.00028219,2]
[327456144,1716079863041,-879.34,0.00028219,2]
[327456145,1716079863050,-500.0,0.00028219,2]
[327456146,1716079863059,-1800.44,0.00028219,2]
[327456147,1716079863069,-500.0,0.00028219,2]
[327456148,1716079863078,-500.0,0.00028219,2]
[327456149,1716079863087,-751.88,0.00028219,2]
[327456150,1716079863096,-500.0,0.00028219,2]
[327456151,1716079863105,-690.03,0.00028219,2]
[327456152,1716079863115,-1239.57,0.00028219,2]
[327456153,1716079863125,-694.45,0.00028219,2]
[327456154,1716079863134,-2119.09,0.00028219,2]
[327456155,1716079863143,-500.0,0.00028219,2]
[327456156,1716079863153,-190.216866,0.00028219,7]
[327456157,1716079863162,-500.0,0.00028219,2]
[327456158,1716079863171,-500.0,0.00028219,2]
[327456159,1716079863180,-2258.52,0.00028219,2]
[327456160,1716079863190,-500.0,0.00028219,2]
[327456161,1716079863199,-582.13,0.00028219,2]
[327456162,1716079863209,-663.78,0.00028219,2]
[327456163,1716079863218,-592.94,0.00028219,2]
[327456164,1716079863227,-500.0,0.00028219,2]
[327456165,1716079863237,-500.0,0.00028219,2]
[327456166,1716079863246,-500.0,0.00028219,2]
[327456167,1716079863257,-663.37,0.00028219,2]
[327456168,1716079863266,-596.02,0.00028219,2]
[327456169,1716079863275,-2187.67,0.00028219,2]
[327456170,1716079863285,-500.0,0.00028219,2]
[327456171,1716079863294,-500.0,0.00028219,2]
[327456172,1716079863304,-252.86873,0.00028219,7]
[327456173,1716079863313,-500.0,0.00028219,2]
[327456174,1716079863323,-500.0,0.00028219,2]
[327456175,1716079863332,-897.21,0.00028219,2]
[327456176,1716079863341,-500.0,0.00028219,2]
[327456177,1716079863350,-500.0,0.00028219,2]
[327456178,1716079863360,-151.0,0.00028219,7]
[327456179,1716079863369,-1986.87,0.00028219,2]
[327456180,1716079863379,-252.86873,0.00028219,7]
[327456181,1716079863388,-567.98,0.00028219,2]
[327456182,1716079863397,-643.54,0.00028219,2]
[327456183,1716079863406,-649.98,0.00028219,2]
[327456184,1716079863415,-2292.47,0.00028219,2]
[327456185,1716079863424,-165.02250309,0.00028219,2]
[327456186,1716079863433,-2459.44,0.00028219,2]
[327456187,1716079863442,-151.0,0.00028219,7]
[327456188,1716079863451,-8969.82,0.00028219,2]
[327456189,1716079863460,-500.0,0.00028219,2]
[327456190,1716079863470,-702.64,0.00028219,2]
[327456191,1716079863479,-500.0,0.00028219,2]
[327456192,1716079863489,-1618.24,0.00028219,2]
[327456193,1716079863498,-500.0,0.00028219,2]
[327456194,1716079863508,-2898.95,0.00028219,2]
[327456195,1716079863517,-500.0,0.00028219,2]
[327456196,1716079863526,-7341.3,0.00028219,2]
[327456197,1716079863535,-500.0,0.00028219,2]
[327456198,1716079863545,-859.92,0.00028219,2]
[327456199,1716079863554,-597.52,0.00028219,2]
[327456200,1716079863563,-2396.63,0.00028219,2]
[327456201,1716079863572,-847.62,0.00028219,2]
[327456202,1716079863582,-676.53,0.00028219,2]
[327456203,1716079863591,-813.35,0.00028219,2]
[327456204,1716079863600,-1434.0,0.00028219,2]
[327456205,1716079863609,-151.0,0.00028219,7]
[327456206,1716079863619,-9386.79,0.00028219,2]
[327456207,1716079863628,-151.0,0.00028219,7]
[327456208,1716079863637,-500.0,0.00028219,2]
[327456209,1716079863647,-756.32,0.00028219,2]
[327456210,1716079863656,-30275.28,0.00028219,2]
[327456211,1716079863666,-1856.14,0.00028219,2]
[327456212,1716079863675,-4020.85,0.00028219,2]
[327456213,1716079863684,-762.31,0.00028219,2]
[327456214,1716079863693,-500.0,0.00028219,2]
[327456215,1716079863703,-4821.09,0.00028219,2]
[327456216,1716079863712,-768.86,0.00028219,2]
[327456217,1716079863721,-500.0,0.00028219,2]
[327456218,1716079863730,-1175.05,0.00028219,2]
[327456219,1716079863739,-500.0,0.00028219,2]
[327456220,1716079863749,-500.0,0.00028219,2]
[327456221,1716079863758,-614.98,0.00028219,2]
[327456222,1716079863767,-500.0,0.00028219,2]
[327456223,1716079863776,-8593.12,0.00028219,2]
[327456224,1716079863785,-994.65,0.00028219,2]
[327456225,1716079863795,-616.67,0.00028219,2]
[327456226,1716079863803,-500.0,0.00028219,2]
[327456227,1716079863813,-900.63,0.00028219,2]
[327456228,1716079863822,-4266.05,0.00028219,2]
[327456229,1716079863831,-966.41,0.00028219,2]
[327456230,1716079863840,-912.23,0.00028219,2]
[327456231,1716079863852,-500.0,0.00028219,2]
[327456232,1716079863862,-500.0,0.00028219,2]
[327456233,1716079863871,-645.69,0.00028219,2]
[327456234,1716079863880,-1869.0,0.00028219,2]
[327456235,1716079863889,-971.87,0.00028219,2]
[327456236,1716079863899,-6268.94,0.00028219,2]
[327456237,1716079863908,-541.88,0.00028219,2]
[327456238,1716079863917,-942.94,0.00028219,2]
[327456239,1716079863927,-500.0,0.00028219,2]
[327456240,1716079863936,-973.68,0.00028219,2]
[327456241,1716079863946,-185.75,0.00028219,2]
[327456242,1716079863956,-544.611513,0.00028219,7]
[327456243,1716079863965,-500.0,0.00028219,2]
[327456244,1716079863975,-1701.01,0.00028219,2]
[327456245,1716079863984,-7483.61,0.00028219,2]
[327456246,1716079863993,-544.611513,0.00028219,7]
[327456247,1716079864004,-500.0,0.00028219,2]
[327456248,1716079864013,-1401.02,0.00028219,2]
[327456249,1716079864023,-676.79,0.00028219,2]
[327456250,1716079864032,-500.0,0.00028219,2]
[327456251,1716079864041,-537.08,0.00028219,2]
[327456252,1716079864050,-6981.65,0.00028219,2]
[327456253,1716079864059,-2717.83,0.00028219,2]
[327456254,1716079864068,-838.88,0.00028219,2]
[327456255,1716079864077,-502.76,0.00028219,2]
[327456256,1716079864086,-2645.1,0.00028219,2]
[327456257,1716079864095,-500.0,0.00028219,2]
[327456258,1716079864104,-500.0,0.00028219,2]
[327456259,1716079864113,-865.2,0.00028219,2]
[327456260,1716079864122,-1132.35,0.00028219,2]
[327456261,1716079864131,-812.15,0.00028219,2]
[327456262,1716079864140,-530.646126,0.00028219,7]
[327456263,1716079864149,-1556.62,0.00028219,2]
[327456264,1716079864217,-718.44,0.00028219,2]
[327456265,1716079864227,-1265.15,0.00028219,2]
[327456266,1716079864236,-530.646126,0.00028219,7]
[327456267,1716079864245,-14055.37,0.00028219,2]
[327456268,1716079864254,-2634.63,0.00028219,2]
[327456269,1716079864263,-15063.88,0.00028219,2]
[327456270,1716079864272,-500.0,0.00028219,2]
[327456271,1716079864281,-2652.66,0.00028219,2]
[327456272,1716079864290,-742.79,0.00028219,2]
[327456273,1716079864299,-621.16,0.00028219,2]
[327456274,1716079864307,-794.5,0.00028219,2]
[327456275,1716079864316,-1250.69,0.00028219,2]
[327456276,1716079864326,-693.14,0.00028219,2]
[327456277,1716079864336,-500.0,0.00028219,2]
[327456278,1716079864345,-889.38,0.00028219,2]
[327456279,1716079864354,-1988.34,0.00028219,2]
[327456280,1716079864363,-500.0,0.00028219,2]
[327456281,1716079864373,-1357.07,0.00028219,2]
[327456282,1716079864382,-998.68,0.00028219,2]
[327456283,1716079864391,-500.0,0.00028219,2]
[327456284,1716079864400,-500.0,0.00028219,2]
[327456285,1716079864410,-500.0,0.00028219,2]
[327456286,1716079864419,-5624.591496,0.00028219,7]
[327456287,1716079864428,-500.0,0.00028219,2]
[327456288,1716079864437,-475.36762934,0.00028219,2]
[327456289,1716079864446,-500.0,0.00028219,2]
[327456290,1716079864455,-601.38,0.00028219,2]
[327456291,1716079864463,-894.0,0.00028219,2]
[327456292,1716079864472,-5624.591496,0.00028219,7]
[327456293,1716079864481,-2431.12,0.00028219,2]
[327456294,1716079864490,-1539.56,0.00028219,2]
[327456295,1716079864499,-511.27,0.00028219,2]
[327456296,1716079864509,-500.0,0.00028219,2]
[327456297,1716079864518,-500.0,0.00028219,2]
[327456298,1716079864527,-500.0,0.00028219,2]
[327456299,1716079864536,-151.0,0.00028219,7]
[327456300,1716079864545,-1396.22,0.00028219,2]
[327456301,1716079864555,-500.0,0.00028219,2]
[327456302,1716079864563,-151.0,0.00028219,7]
[327456303,1716079864572,-151.0,0.00028219,7]
[327456304,1716079864581,-1300.21,0.00028219,2]
[327456305,1716079864590,-2267.23,0.00028219,2]
[327456306,1716079864599,-1327.72,0.00028219,2]
[327456307,1716079864608,-500.0,0.00028219,2]
[327456308,1716079864617,-500.0,0.00028219,2]
[327456309,1716079864626,-151.0,0.00028219,7]
[327456310,1716079864635,-151.0,0.00028219,7]
[327456311,1716079864644,-500.0,0.00028219,2]
[327456312,1716079864653,-3187.9,0.00028219,2]
[327456313,1716079864663,-500.0,0.00028219,2]
[327456314,1716079864671,-1229.67,0.00028219,2]
[327456315,1716079864680,-1554.51,0.00028219,2]
[327456316,1716079864690,-500.0,0.00028219,2]
[327456317,1716079864699,-500.0,0.00028219,2]
[327456318,1716079864708,-902.06,0.00028219,2]
[327456319,1716079864717,-500.0,0.00028219,2]
[327456320,1716079864726,-500.0,0.00028219,2]
[327456321,1716079864735,-739.0,0.00028219,2]
[327456322,1716079864744,-744.32,0.00028219,2]
[327456323,1716079864754,-500.0,0.00028219,2]
[327456324,1716079864763,-151.0,0.00028219,7]
[327456325,1716079864771,-566.09,0.00028219,2]
[327456326,1716079864781,-151.0,0.00028219,7]
[327456327,1716079864790,-2317.87,0.00028219,2]
[327456328,1716079864799,-400.08672956,0.00028219,2]
[327456329,1716079864808,-1543.54,0.00028219,2]
[327456330,1716079864817,-500.0,0.00028219,2]
[327456331,1716079864826,-500.0,0.00028219,2]
[327456332,1716079864835,-500.0,0.00028219,2]
[327456333,1716079864844,-500.0,0.00028219,2]
[327456334,1716079864858,-1576.46,0.00028219,2]
[327456335,1716079864868,-500.0,0.00028219,2]
[327456336,1716079864877,-1727.73,0.00028219,2]
[327456337,1716079864886,-1192.7,0.00028219,2]
[327456338,1716079864895,-702.53,0.00028219,2]
[327456339,1716079864904,-500.0,0.00028219,2]
[327456340,1716079864913,-902.92,0.00028219,2]
[327456341,1716079864922,-500.0,0.00028219,2]
[327456342,1716079864931,-500.0,0.00028219,2]
[327456343,1716079864939,-750.17,0.00028219,2]
[327456344,1716079864948,-683.13,0.00028219,2]
[327456345,1716079864958,-1571.87,0.00028219,2]
[327456346,1716079864967,-500.0,0.00028219,2]
[327456347,1716079864976,-1593.16,0.00028219,2]
[327456348,1716079864986,-1391.44,0.00028219,2]
[327456349,1716079864994,-500.0,0.00028219,2]
[327456350,1716079865004,-734.3,0.00028219,2]
[327456351,1716079865013,-723.24,0.00028219,2]
[327456352,1716079865022,-765.2,0.00028219,2]
[327456353,1716079865031,-500.0,0.00028219,2]
[327456354,1716079865040,-1006.36,0.00028219,2]
[327456355,1716079865049,-500.0,0.00028219,2]
[327456356,1716079865058,-1946.51,0.00028219,2]
[327456357,1716079865067,-500.0,0.00028219,2]
[327456358,1716079865076,-500.0,0.00028219,2]
[327456359,1716079865085,-737.65,0.00028219,2]
[327456360,1716079865096,-1321.13,0.00028219,2]
[327456361,1716079865105,-340.963945,0.00028219,7]
[327456362,1716079865113,-500.0,0.00028219,2]
[327456363,1716079865122,-976.72,0.00028219,2]
[327456364,1716079865131,-500.0,0.00028219,2]
[327456365,1716079865141,-182.997182,0.00028219,7]
[327456366,1716079865150,-340.963945,0.00028219,7]
[327456367,1716079865159,-1844.47,0.00028219,2]
[327456368,1716079865168,-500.0,0.00028219,2]
[327456369,1716079865177,-500.0,0.00028219,2]
[327456370,1716079865187,-1337.56,0.00028219,2]
[327456371,1716079865196,-609.15,0.00028219,2]
[327456372,1716079865205,-892.71,0.00028219,2]
[327456373,1716079865214,-182.997182,0.00028219,7]
[327456374,1716079865223,-500.0,0.00028219,2]
[327456375,1716079865233,-713.62,0.00028219,2]
[327456376,1716079865242,-2601.94,0.00028219,2]
[327456377,1716079865251,-500.0,0.00028219,2]
[327456378,1716079865260,-1338.29,0.00028219,2]
[327456379,1716079865270,-500.0,0.00028219,2]
[327456380,1716079865279,-877.48,0.00028219,2]
[327456381,1716079865288,-500.0,0.00028219,2]
[327456382,1716079865297,-500.0,0.00028219,2]
[327456383,1716079865306,-955.29,0.00028219,2]
[327456384,1716079865315,-3753.72,0.00028219,2]
[327456385,1716079865325,-500.0,0.00028219,2]
[327456386,1716079865334,-3260.19,0.00028219,2]
[327456387,1716079865343,-403.22,0.00028219,2]
[327456388,1716079865352,-500.0,0.00028219,2]
[327456389,1716079865361,-2742.03,0.00028219,2]
[327456390,1716079865371,-1111.7,0.00028219,2]
[327456391,1716079865380,-151.0,0.00028219,7]
[327456392,1716079865390,-1864.26,0.00028219,2]
[327456393,1716079865400,-500.0,0.00028219,2]
[327456394,1716079865409,-500.0,0.00028219,2]
[327456395,1716079865418,-500.0,0.00028219,2]
[327456396,1716079865427,-500.0,0.00028219,2]
[327456397,1716079865436,-550.17,0.00028219,2]
[327456398,1716079865445,-500.0,0.00028219,2]
[327456399,1716079865455,-577.21,0.00028219,2]
[327456400,1716079865464,-1512.87,0.00028219,2]
[327456401,1716079865474,-697.0,0.00028219,2]
[327456402,1716079865483,-500.0,0.00028219,2]
[327456403,1716079865492,-2533.85,0.00028219,2]
[327456404,1716079865502,-679.17,0.00028219,2]
[327456405,1716079865511,-965.18,0.00028219,2]
[327456406,1716079865521,-1281.95,0.00028219,2]
[327456407,1716079865530,-451.52,0.00028219,2]
[327456408,1716079865540,-500.0,0.00028219,2]
[327456409,1716079865550,-500.0,0.00028219,2]
[327456410,1716079865559,-157.051909,0.00028248,26]
[327456411,1716079865568,-157.051909,0.00028348,10]
[327456412,1716079865578,-1137.41043856,0.00028356,2]
[327456413,1716079865587,-157.051909,0.00028448,24]
[327456414,1716079865596,-1006.86067978,0.0002846,2]
[327456415,1716079865606,-500.0,0.00028493,2]
[327456416,1716079865616,-500.0,0.00028493,2]
[327456417,1716079865625,-500.0,0.00028493,2]
[327456418,1716079865634,-500.0,0.00028493,2]
[327456419,1716079865643,-500.0,0.00028493,2]
[327456420,1716079865653,-500.0,0.00028493,2]
[327456421,1716079865662,-500.0,0.00028493,2]
[327456422,1716079865672,-500.0,0.00028493,2]
[327456423,1716079865681,-694.12,0.00028493,2]
[327456424,1716079865690,-151.0,0.00028493,7]
[327456425,1716079865700,-500.0,0.00028493,2]
[327456426,1716079865709,-500.0,0.00028493,2]
[327456427,1716079865718,-500.0,0.00028493,2]
[327456428,1716079865727,-500.0,0.00028493,2]
[327456429,1716079865736,-500.0,0.00028493,2]
[327456430,1716079865746,-566.02,0.00028493,2]
[327456431,1716079865756,-500.0,0.00028493,2]
[327456432,1716079865765,-500.0,0.00028493,2]
[327456433,1716079865775,-500.0,0.00028493,2]
[327456434,1716079865784,-500.0,0.00028493,2]
[327456435,1716079865794,-500.0,0.00028493,2]
[327456436,1716079865804,-608.41,0.00028493,2]
[327456437,1716079865814,-500.0,0.00028493,2]
[327456438,1716079865823,-500.0,0.00028493,2]
[327456439,1716079865832,-1131.97,0.00028493,2]
[327456440,1716079865841,-500.0,0.00028493,2]
[327456441,1716079865855,-151.0,0.00028493,7]
[327456442,1716079865864,-579.57,0.00028493,2]
[327456443,1716079865875,-500.0,0.00028493,2]
[327456444,1716079865884,-500.0,0.00028493,2]
[327456445,1716079865896,-500.0,0.00028493,2]
[327456446,1716079865906,-500.0,0.00028493,2]
[327456447,1716079865917,-500.0,0.00028493,2]
[327456448,1716079865929,-500.0,0.00028493,2]
[327456449,1716079865939,-500.09,0.00028493,2]
[327456450,1716079865948,-500.0,0.00028493,2]
[327456451,1716079865957,-873.62,0.00028493,2]
[327456452,1716079865966,-500.0,0.00028493,2]
[327456453,1716079865975,-500.0,0.00028493,2]
[327456454,1716079865985,-500.0,0.00028493,2]
[327456455,1716079865994,-500.0,0.00028493,2]
[327456456,1716079866004,-500.0,0.00028493,2]
[327456457,1716079866015,-500.0,0.00028493,2]
[327456458,1716079866024,-500.0,0.00028493,2]
[327456459,1716079866034,-500.0,0.00028493,2]
[327456460,1716079866043,-648.09,0.00028493,2]
[327456461,1716079866052,-523.3,0.00028493,2]
[327456462,1716079866062,-500.0,0.00028493,2]
[327456463,1716079866071,-500.0,0.00028493,2]
[327456464,1716079866081,-500.0,0.00028493,2]
[327456465,1716079866091,-500.0,0.00028493,2]
[327456466,1716079866103,-801.03,0.00028493,2]
[327456467,1716079866114,-558.63,0.00028493,2]
[327456468,1716079866123,-799.77,0.00028493,2]
[327456469,1716079866134,-591.98,0.00028493,2]
[327456470,1716079866144,-500.0,0.00028493,2]
[327456471,1716079866154,-432.92663351,0.00028493,2]
[327456472,1716079866165,-892.31,0.00028493,2]
[327456473,1716079866174,-464.916911,0.00028493,7]
[327456474,1716079866183,-500.0,0.00028493,2]
[327456475,1716079866193,-464.916911,0.00028493,7]
[327456476,1716079866203,-500.0,0.00028493,2]
[327456477,1716079866212,-655.12,0.00028493,2]
[327456478,1716079866222,-616.57,0.00028493,2]
[327456479,1716079866231,-517.62,0.00028493,2]
[327456480,1716079866241,-500.0,0.00028493,2]
[327456481,1716079866250,-500.0,0.00028493,2]
[327456482,1716079866260,-500.0,0.00028493,2]
[327456483,1716079866269,-602.52,0.00028493,2]
[327456484,1716079866278,-1082.875413,0.00028493,7]
[327456485,1716079866287,-500.0,0.00028493,2]
[327456486,1716079866297,-500.0,0.00028493,2]
[327456487,1716079866306,-1082.875413,0.00028493,7]
[327456488,1716079866316,-840.77,0.00028493,2]
[327456489,1716079866325,-500.0,0.00028493,2]
[327456490,1716079866335,-608.64,0.00028493,2]
[327456491,1716079866345,-536.02,0.00028493,2]
[327456492,1716079866354,-1106.38,0.00028493,2]
[327456493,1716079866364,-500.0,0.00028493,2]
[327456494,1716079866374,-151.0,0.00028493,7]
[327456495,1716079866383,-500.0,0.00028493,2]
[327456496,1716079866393,-500.0,0.00028493,2]
[327456497,1716079866402,-500.0,0.00028493,2]
[327456498,1716079866411,-500.0,0.00028493,2]
[327456499,1716079866421,-151.0,0.00028493,7]
[327456500,1716079866431,-500.0,0.00028493,2]
[327456501,1716079866440,-957.21,0.00028493,2]
[327456502,1716079866449,-1257.0,0.00028493,2]
[327456503,1716079866459,-500.0,0.00028493,2]
[327456504,1716079866468,-532.8993003,0.00028493,2]
[327456505,1716079866477,-500.0,0.00028493,2]
[327456506,1716079866487,-500.0,0.00028493,2]
[327456507,1716079866496,-1352.16,0.00028493,2]
[327456508,1716079866507,-500.0,0.00028493,2]
[327456509,1716079866516,-684.6,0.00028493,2]
[327456510,1716079866525,-1072.66,0.00028493,2]
[327456511,1716079866535,-849.73,0.00028493,2]
[327456512,1716079866544,-500.0,0.00028493,2]
[327456513,1716079866554,-874.66,0.00028493,2]
[327456514,1716079866563,-151.0,0.00028493,7]
[327456515,1716079866575,-585.08,0.00028493,2]
[327456516,1716079866584,-1990.29,0.00028493,2]
[327456517,1716079866593,-545.44,0.00028493,2]
[327456518,1716079866603,-162.504536,0.00028493,7]
[327456519,1716079866612,-1243.99,0.00028493,2]
[327456520,1716079866622,-500.0,0.00028493,2]
[327456521,1716079866631,-750.45,0.00028493,2]
[327456522,1716079866640,-748.72,0.00028493,2]
[327456523,1716079866650,-1292.43,0.00028493,2]
[327456524,1716079866660,-151.0,0.00028493,7]
[327456525,1716079866670,-500.0,0.00028493,2]
[327456526,1716079866680,-171.212628,0.00028493,7]
[327456527,1716079866689,-846.9,0.00028493,2]
[327456528,1716079866699,-500.0,0.00028493,2]
[327456529,1716079866710,-1250.19,0.00028493,2]
[327456530,1716079866722,-1463.37,0.00028493,2]
[327456531,1716079866732,-500.0,0.00028493,2]
[327456532,1716079866743,-151.0,0.00028493,7]
[327456533,1716079866753,-530.63,0.00028493,2]
[327456534,1716079866762,-500.0,0.00028493,2]
[327456535,1716079866772,-843.77,0.00028493,2]
[327456536,1716079866782,-1072.07,0.00028493,2]
[327456537,1716079866791,-500.0,0.00028493,2]